fUST/lending_fUST_20240516
["ID","MTS","AMOUNT","RATE_DAILY","PERIOD"]
[327171199,1715872256655,-542.07820333,0.0001726,2]
[327171200,1715872256664,-270.22312369,0.0001726,2]
[327171201,1715872256674,-500.0,0.0001726,2]
[327171202,1715872256683,-4066.3,0.0001726,2]
[327171203,1715872256692,-610.64,0.0001726,2]
[327171204,1715872256701,-556.11,0.0001726,2]
[327171205,1715872256710,-500.0,0.0001726,2]
[327171206,1715872256719,-500.0,0.0001726,2]
[327171207,1715872256728,-1687.07,0.0001726,2]
[327171208,1715872256738,-946.82,0.0001726,2]
[327171209,1715872256748,-544.46,0.0001726,2]
[327171210,1715872256757,-500.0,0.0001726,2]
[327171211,1715872256766,-508.93,0.0001726,2]
[327171212,1715872256776,-500.0,0.0001726,2]
[327171213,1715872256785,-500.0,0.0001726,2]
[327171214,1715872256794,-897.6,0.0001726,2]
[327171215,1715872256804,-500.0,0.0001726,2]
[327171216,1715872256814,-512.12,0.0001726,2]
[327171217,1715872256825,-575.53,0.0001726,2]
[327171218,1715872256836,-920.27,0.0001726,2]
[327171219,1715872256847,-500.0,0.0001726,2]
[327171220,1715872256858,-257.74793894,0.0001726,2]
[327171221,1715872256868,-2387.75,0.0001726,2]
[327171222,1715872256877,-500.0,0.0001726,2]
[327171223,1715872256887,-674.36,0.0001726,2]
[327171224,1715872256897,-2035.68,0.0001726,2]
[327171225,1715872256907,-523.43044787,0.0001726,2]
[327171226,1715872256916,-5268.11,0.0001726,2]
[327171227,1715872256925,-500.0,0.0001726,2]
[327171228,1715872256935,-500.0,0.0001726,2]
[327171229,1715872256944,-500.0,0.0001726,2]
[327171230,1715872256959,-500.0,0.0001726,2]
[327171231,1715872256968,-2497.64,0.0001726,2]
[327171232,1715872256977,-1483.29,0.0001726,2]
[327171233,1715872256986,-4507.73,0.0001726,2]
[327171234,1715872256997,-500.0,0.0001726,2]
[327171235,1715872257006,-500.0,0.0001726,2]
[327171236,1715872257015,-500.0,0.0001726,2]
[327171237,1715872257025,-500.0,0.0001726,2]
[327171238,1715872257038,-500.0,0.0001726,2]
[327171239,1715872257048,-2877.84,0.0001726,2]
[327171240,1715872257059,-500.0,0.0001726,2]
[327171241,1715872257068,-604.63,0.0001726,2]
[327171242,1715872257201,-822.07,0.0001726,2]
[327171243,1715872257211,-939.83,0.0001726,2]
[327171244,1715872257220,-500.0,0.0001726,2]
[327171245,1715872257229,-723.53,0.0001726,2]
[327171246,1715872257238,-1872.81562208,0.0001726,2]
[327171247,1715872257698,-512.89437792,0.0001726,2]
[327171248,1715872257708,-500.0,0.0001726,2]
[327171249,1715872257718,-724.1,0.0001726,2]
[327171250,1715872257728,-975.72,0.0001726,2]
[327171251,1715872257738,-500.0,0.0001726,2]
[327171252,1715872257752,-500.0,0.0001726,2]
[327171253,1715872257761,-500.0,0.0001726,2]
[327171254,1715872257771,-539.83,0.0001726,2]
[327171255,1715872257780,-500.0,0.0001726,2]
[327171256,1715872257789,-500.0,0.0001726,2]
[327171257,1715872257799,-1708.18,0.0001726,2]
[327171258,1715872257808,-500.0,0.0001726,2]
[327171259,1715872257818,-500.0,0.0001726,2]
[327171260,1715872257827,-2449.71,0.0001726,2]
[327171261,1715872257836,-822.9,0.0001726,2]
[327171262,1715872257846,-500.0,0.0001726,2]
[327171263,1715872257856,-2653.83,0.0001726,2]
[327171264,1715872257865,-500.0,0.0001726,2]
[327171265,1715872257875,-500.0,0.0001726,2]
[327171266,1715872257886,-1058.32,0.0001726,2]
[327171267,1715872257897,-1024.37,0.0001726,2]
[327171268,1715872257906,-1324.34,0.0001726,2]
[327171269,1715872257916,-4448.65,0.0001726,2]
[327171270,1715872257926,-500.0,0.0001726,2]
[327171271,1715872257936,-500.0,0.0001726,2]
[327171272,1715872257946,-500.0,0.0001726,2]
[327171273,1715872257959,-536.86,0.0001726,2]
[327171274,1715872257969,-500.0,0.0001726,2]
[327171275,1715872257979,-500.0,0.0001726,2]
[327171276,1715872257988,-500.0,0.0001726,2]
[327171277,1715872258003,-63583.12,0.0001726,2]
[327171278,1715872258013,-1949.52,0.0001726,2]
[327171279,1715872258023,-579.15,0.0001726,2]
[327171280,1715872258034,-564.85,0.0001726,2]
[327171281,1715872258046,-500.0,0.0001726,2]
[327171282,1715872258057,-14970.55,0.0001726,2]
[327171283,1715872258066,-870.42,0.0001726,2]
[327171284,1715872258077,-260.85550723,0.0001726,2]
[327171285,1715872258087,-9348.96,0.0001726,2]
[327171286,1715872258096,-500.0,0.0001726,2]
[327171287,1715872258106,-5147.06,0.0001726,2]
[327171288,1715872258116,-1224.05,0.0001726,2]
[327171289,1715872258126,-914.62,0.0001726,2]
[327171290,1715872258135,-500.0,0.0001726,2]
[327171291,1715872258144,-6827.55,0.0001726,2]
[327171292,1715872258154,-500.0,0.0001726,2]
[327171293,1715872258164,-708.41,0.0001726,2]
[327171294,1715872258174,-500.0,0.0001726,2]
[327171295,1715872258184,-500.0,0.0001726,2]
[327171296,1715872258194,-500.0,0.0001726,2]
[327171297,1715872258206,-500.0,0.0001726,2]
[327171298,1715872258216,-500.0,0.0001726,2]
[327171299,1715872258225,-4111.06,0.0001726,2]
[327171300,1715872258235,-1067.21,0.0001726,2]
[327171301,1715872258245,-2586.02,0.0001726,2]
[327171302,1715872258260,-500.0,0.0001726,2]
[327171303,1715872258269,-2534.47,0.0001726,2]
[327171304,1715872258279,-786.76,0.0001726,2]
[327171305,1715872258288,-2635.22,0.0001726,2]
[327171306,1715872258297,-500.0,0.0001726,2]
[327171307,1715872258306,-1588.79,0.0001726,2]
[327171308,1715872258316,-566.12151485,0.0001726,2]
[327171309,1715872258326,-1933.06,0.0001726,2]
[327171310,1715872258336,-500.0,0.0001726,2]
[327171311,1715872258347,-500.0,0.0001726,2]
[327171312,1715872258356,-4812.12,0.0001726,2]
[327171313,1715872258366,-500.38457858,0.0001726,2]
[327171314,1715872258376,-500.0,0.0001726,2]
[327171315,1715872258386,-1328.77,0.0001726,2]
[327171316,1715872258396,-1444.37,0.0001726,2]
[327171317,1715872258405,-500.0,0.0001726,2]
[327171318,1715872258415,-500.0,0.0001726,2]
[327171319,1715872258424,-500.0,0.0001726,2]
[327171320,1715872258433,-500.0,0.0001726,2]
[327171321,1715872258443,-150.0,0.0001735,2]
[327171322,1715872258453,-160.0,0.00017441,2]
[327171323,1715872258463,-694.8,0.00017441,2]
[327171324,1715872258473,-159.7,0.00017441,2]
[327171325,1715872258483,-154.82968734,0.00017448,2]
[327171326,1715872258492,-527.19,0.00017534,2]
[327171327,1715872258507,-587.07678689,0.00017534,2]
[327171328,1715872258517,-500.0,0.00017534,2]
[327171329,1715872258526,-500.0,0.00017534,2]
[327171330,1715872258536,-666.6,0.00017534,2]
[327171331,1715872258545,-500.0,0.00017534,2]
[327171332,1715872258555,-578.50323802,0.00017534,2]
[327171333,1715872258564,-630.33823224,0.00017534,2]
[327171334,1715872258573,-500.0,0.00017534,2]
[327171335,1715872258582,-518.33,0.00017534,2]
[327171336,1715872258591,-517.6,0.00017534,2]
[327171337,1715872258600,-500.0,0.00017534,2]
[327171338,1715872258610,-1288.28,0.00017534,2]
[327171339,1715872258620,-500.0,0.00017534,2]
[327171340,1715872258630,-557.54,0.00017534,2]
[327171341,1715872258640,-500.0,0.00017534,2]
[327171342,1715872258650,-500.0,0.00017534,2]
[327171343,1715872258659,-688.34,0.00017534,2]
[327171344,1715872258669,-500.0,0.00017534,2]
[327171345,1715872258678,-520.33806847,0.00017534,2]
[327171346,1715872258688,-500.0,0.00017534,4]
[327171347,1715872258698,-500.0,0.00017534,2]
[327171348,1715872258707,-500.0,0.00017534,2]
[327171349,1715872258716,-500.0,0.00017534,2]
[327171350,1715872258726,-500.0,0.00017534,2]
[327171351,1715872258735,-500.0,0.00017534,2]
[327171352,1715872258744,-530.1,0.00017534,2]
[327171353,1715872258759,-500.0,0.00017534,2]
[327171354,1715872258768,-500.0,0.00017534,2]
[327171355,1715872258777,-500.0,0.00017534,2]
[327171356,1715872258786,-500.0,0.00017534,2]
[327171357,1715872258795,-500.0,0.00017534,2]
[327171358,1715872258804,-500.0,0.00017534,2]
[327171359,1715872258813,-500.0,0.00017534,2]
[327171360,1715872258822,-500.0,0.00017534,2]
[327171361,1715872258832,-500.0,0.00017534,2]
[327171362,1715872258842,-500.0,0.00017534,2]
[327171363,1715872258851,-563.44,0.00017534,2]
[327171364,1715872258861,-500.0,0.00017534,2]
[327171365,1715872258871,-500.0,0.00017534,2]
[327171366,1715872258881,-717.98,0.00017534,2]
[327171367,1715872258891,-1447.74,0.00017534,2]
[327171368,1715872258900,-816.92,0.00017534,2]
[327171369,1715872258910,-589.36,0.00017534,2]
[327171370,1715872258920,-1033.12,0.00017534,2]
[327171371,1715872258929,-500.0,0.00017534,2]
[327171372,1715872258939,-280.79903579,0.00017534,2]
[327171373,1715872258951,-501.02,0.00017534,2]
[327171374,1715872258967,-621.81454295,0.00017534,2]
[327171375,1715872258978,-500.0,0.00017534,2]
[327171376,1715872258989,-500.0,0.00017534,2]
[327171377,1715872259004,-500.0,0.00017534,2]
[327171378,1715872259014,-1263.19,0.00017534,2]
[327171379,1715872259023,-1496.4,0.00017534,2]
[327171380,1715872259036,-500.0,0.00017534,2]
[327171381,1715872259046,-827.93,0.00017534,2]
[327171382,1715872259055,-500.0,0.00017534,2]
[327171383,1715872259064,-500.0,0.00017534,2]
[327171384,1715872259073,-543.75,0.00017534,2]
[327171385,1715872259082,-500.0,0.00017534,2]
[327171386,1715872259090,-500.0,0.00017534,2]
[327171387,1715872259099,-1223.42,0.00017534,2]
[327171388,1715872259108,-1265.32,0.00017534,2]
[327171389,1715872259117,-538.36,0.00017534,2]
[327171390,1715872259127,-1121.25,0.00017534,2]
[327171391,1715872259136,-500.0,0.00017534,2]
[327171392,1715872259146,-624.44,0.00017534,2]
[327171393,1715872259156,-802.47,0.00017534,2]
[327171394,1715872259165,-500.0,0.00017534,2]
[327171395,1715872259175,-759.69,0.00017534,2]
[327171396,1715872259184,-690.01,0.00017534,2]
[327171397,1715872259193,-500.0,0.00017534,2]
[327171398,1715872259203,-500.0,0.00017534,2]
[327171399,1715872259212,-607.26,0.00017534,2]
[327171400,1715872259222,-500.0,0.00017534,2]
[327171401,1715872259232,-500.0,0.00017534,2]
[327171402,1715872259241,-500.0,0.00017534,2]
[327171403,1715872259254,-1037.8,0.00017534,2]
[327171404,1715872259263,-1001.19,0.00017534,2]
[327171405,1715872259272,-1158.68,0.00017534,2]
[327171406,1715872259281,-543.56614702,0.00017534,2]
[327171407,1715872259291,-500.0,0.00017534,2]
[327171408,1715872259301,-500.0,0.00017534,2]
[327171409,1715872259310,-519.3,0.00017534,2]
[327171410,1715872259320,-500.0,0.00017534,2]
[327171411,1715872259329,-669.88,0.00017534,2]
[327171412,1715872259339,-500.0,0.00017534,2]
[327171413,1715872259348,-500.0,0.00017534,2]
[327171414,1715872259358,-500.0,0.00017534,2]
[327171415,1715872259368,-500.0,0.00017534,2]
[327171416,1715872259378,-714.32,0.00017534,2]
[327171417,1715872259388,-500.0,0.00017534,2]
[327171418,1715872259398,-1121.92,0.00017534,2]
[327171419,1715872259407,-946.76,0.00017534,2]
[327171420,1715872259418,-2040.45,0.00017534,2]
[327171421,1715872259427,-2085.2,0.00017534,2]
[327171422,1715872259437,-500.0,0.00017534,2]
[327171423,1715872259446,-1283.57,0.00017534,2]
[327171424,1715872259456,-500.0,0.00017534,2]
[327171425,1715872259466,-630.38,0.00017534,2]
[327171426,1715872259475,-500.0,0.00017534,2]
[327171427,1715872259484,-512.60242188,0.00017534,2]
[327171428,1715872259494,-529.58,0.00017534,2]
[327171429,1715872259506,-500.07,0.00017534,2]
[327171430,1715872259515,-500.0,0.00017534,2]
[327171431,1715872259524,-500.0,0.00017534,2]
[327171432,1715872259533,-3932.1,0.00017534,2]
[327171433,1715872259542,-1516.16,0.00017534,2]
[327171434,1715872259552,-500.0,0.00017534,2]
[327171435,1715872259561,-500.0,0.00017534,2]
[327171436,1715872259571,-1338.06,0.00017534,2]
[327171437,1715872259581,-500.0,0.00017534,2]
[327171438,1715872259590,-500.0,0.00017534,2]
[327171439,1715872259599,-2424.93,0.00017534,2]
[327171440,1715872259609,-1067.71,0.00017534,2]
[327171441,1715872259619,-500.0,0.00017534,2]
[327171442,1715872259628,-500.0,0.00017534,2]
[327171443,1715872259638,-1032.21,0.00017534,2]
[327171444,1715872259647,-500.0,0.00017534,2]
[327171445,1715872259657,-585.77,0.00017534,2]
[327171446,1715872259666,-995.02,0.00017534,2]
[327171447,1715872259676,-500.0,0.00017534,2]
[327171448,1715872259686,-500.0,0.00017534,2]
[327171449,1715872259696,-500.0,0.00017534,2]
[327171450,1715872259706,-772.64,0.00017534,2]
[327171451,1715872259716,-3521.27,0.00017534,2]
[327171452,1715872259727,-620.15,0.00017534,2]
[327171453,1715872259737,-1068.36,0.00017534,2]
[327171454,1715872259749,-500.0,0.00017534,2]
[327171455,1715872259759,-500.0,0.00017534,2]
[327171456,1715872259768,-500.0,0.00017534,2]
[327171457,1715872259777,-500.0,0.00017534,2]
[327171458,1715872259786,-4066.3,0.00017534,2]
[327171459,1715872259795,-610.64,0.00017534,2]
[327171460,1715872259842,-556.11,0.00017534,2]
[327171461,1715872259852,-500.0,0.00017534,2]
[327171462,1715872259861,-500.0,0.00017534,2]
[327171463,1715872259871,-1687.07,0.00017534,2]
[327171464,1715872259880,-946.82,0.00017534,2]
[327171465,1715872259890,-544.46,0.00017534,2]
[327171466,1715872259899,-282.87005266,0.00017534,2]
[327171467,1715872259908,-508.93,0.00017534,2]
[327171468,1715872259917,-500.0,0.00017534,2]
[327171469,1715872259927,-500.0,0.00017534,2]
[327171470,1715872259936,-897.6,0.00017534,2]
[327171471,1715872259946,-500.0,0.00017534,2]
[327171472,1715872259961,-512.12,0.00017534,2]
[327171473,1715872259971,-575.53,0.00017534,2]
[327171474,1715872259980,-920.27,0.00017534,2]
[327171475,1715872259990,-500.0,0.00017534,2]
[327171476,1715872260009,-2387.75,0.00017534,2]
[327171477,1715872260018,-500.0,0.00017534,2]
[327171478,1715872260027,-674.36,0.00017534,2]
[327171479,1715872260038,-2035.68,0.00017534,2]
[327171480,1715872260048,-5268.11,0.00017534,2]
[327171481,1715872260057,-500.0,0.00017534,2]
[327171482,1715872260066,-500.0,0.00017534,2]
[327171483,1715872260075,-500.0,0.00017534,2]
[327171484,1715872260083,-500.0,0.00017534,2]
[327171485,1715872260092,-2497.64,0.00017534,2]
[327171486,1715872260101,-1483.29,0.00017534,2]
[327171487,1715872260110,-4507.73,0.00017534,2]
[327171488,1715872260119,-500.0,0.00017534,2]
[327171489,1715872260129,-500.0,0.00017534,2]
[327171490,1715872260138,-564.53432852,0.00017534,2]
[327171491,1715872260147,-500.0,0.00017534,2]
[327171492,1715872260157,-500.0,0.00017534,2]
[327171493,1715872260166,-2877.84,0.00017534,2]
[327171494,1715872260175,-500.0,0.00017534,2]
[327171495,1715872260184,-604.63,0.00017534,2]
[327171496,1715872260195,-822.07,0.00017534,2]
[327171497,1715872260204,-939.83,0.00017534,2]
[327171498,1715872260214,-500.0,0.00017534,2]
[327171499,1715872260223,-723.53,0.00017534,2]
[327171500,1715872260233,-2385.71,0.00017534,2]
[327171501,1715872260243,-500.0,0.00017534,2]
[327171502,1715872260258,-724.1,0.00017534,2]
[327171503,1715872260268,-975.72,0.00017534,2]
[327171504,1715872260277,-542.4922578,0.00017534,2]
[327171505,1715872260287,-500.0,0.00017534,2]
[327171506,1715872260296,-500.0,0.00017534,2]
[327171507,1715872260305,-539.83,0.00017534,2]
[327171508,1715872260315,-500.0,0.00017534,2]
[327171509,1715872260324,-500.0,0.00017534,2]
[327171510,1715872260333,-1708.18,0.00017534,2]
[327171511,1715872260342,-500.0,0.00017534,2]
[327171512,1715872260352,-2449.71,0.00017534,2]
[327171513,1715872260361,-822.9,0.00017534,2]
[327171514,1715872260371,-500.0,0.00017534,2]
[327171515,1715872260380,-2653.83,0.00017534,2]
[327171516,1715872260389,-500.0,0.00017534,2]
[327171517,1715872260398,-500.0,0.00017534,2]
[327171518,1715872260407,-1058.32,0.00017534,2]
[327171519,1715872260416,-1024.37,0.00017534,2]
[327171520,1715872260426,-1324.34,0.00017534,2]
[327171521,1715872260436,-4448.65,0.00017534,2]
[327171522,1715872260445,-500.0,0.00017534,2]
[327171523,1715872260456,-500.0,0.00017534,2]
[327171524,1715872260466,-500.0,0.00017534,2]
[327171525,1715872260476,-536.86,0.00017534,2]
[327171526,1715872260486,-500.0,0.00017534,2]
[327171527,1715872260499,-500.0,0.00017534,2]
[327171528,1715872260512,-500.0,0.00017534,2]
[327171529,1715872260522,-63583.12,0.00017534,2]
[327171530,1715872260532,-1949.52,0.00017534,2]
[327171531,1715872260541,-579.15,0.00017534,2]
[327171532,1715872260550,-564.85,0.00017534,2]
[327171533,1715872260560,-500.0,0.00017534,2]
[327171534,1715872260569,-14970.55,0.00017534,2]
[327171535,1715872260578,-870.42,0.00017534,2]
[327171536,1715872260588,-9348.96,0.00017534,2]
[327171537,1715872260598,-500.0,0.00017534,2]
[327171538,1715872260607,-5147.06,0.00017534,2]
[327171539,1715872260616,-914.62,0.00017534,2]
[327171540,1715872260626,-1224.05,0.00017534,2]
[327171541,1715872260636,-500.0,0.00017534,2]
[327171542,1715872260645,-6827.55,0.00017534,2]
[327171543,1715872260655,-500.0,0.00017534,2]
[327171544,1715872260664,-708.41,0.00017534,2]
[327171545,1715872260674,-500.0,0.00017534,2]
[327171546,1715872260684,-500.0,0.00017534,2]
[327171547,1715872260694,-500.0,0.00017534,2]
[327171548,1715872260704,-500.0,0.00017534,2]
[327171549,1715872260714,-500.0,0.00017534,2]
[327171550,1715872260724,-4111.06,0.00017534,2]
[327171551,1715872260733,-306.87014636,0.00017534,2]
[327171565,1715872497752,437.504158,0.00014878,2]
[327171566,1715872682169,328.22139918,9.999e-05,2]
[327171567,1715872697491,702.32898903,9.999e-05,2]
[327171568,1715872703404,273.37336231,9.9e-05,2]
[327171569,1715872712956,273.37336231,9.9e-05,2]
[327171570,1715872723163,273.37336231,9.9e-05,2]
[327171571,1715872732626,273.37336231,9.9e-05,2]
[327171572,1715872743004,273.37336231,9.9e-05,2]
[327171573,1715872751435,273.37336231,9.9e-05,2]
[327171574,1715872763356,273.37336231,9.9e-05,2]
[327171575,1715872772221,273.37336231,9.9e-05,2]
[327171577,1715872897349,481.4474931,0.00014932,2]
[327171579,1715873067621,613.6071215,0.00014876,2]
[327171580,1715873124713,328.22139918,9.999e-05,2]
[327171583,1715873242143,-304.240255,0.00015018,2]
[327171584,1715873242164,-250.0,0.00015022,2]
[327171585,1715873242185,-189.52503468,0.00015968,2]
[327171586,1715873242205,-217.70669671,0.000162,2]
[327171587,1715873242230,-224.52874838,0.00016238,2]
[327171588,1715873242249,-603.54157098,0.00016336,2]
[327171589,1715873242270,-719.63401721,0.00016336,2]
[327171590,1715873242290,-212.97795482,0.00016337,2]
[327171591,1715873242312,-48549.21854885,0.00016338,2]
[327171602,1715873432371,-165.0653007,0.00016238,2]
[327171604,1715873432382,-165.06530069,0.00016338,2]
[327171606,1715873432391,-40338.78145115,0.00016338,2]
[327171608,1715873432401,-1396.90548083,0.00016436,2]
[327171609,1715873432410,-350.61277918,0.00016437,2]
[327171611,1715873432420,-320.90217582,0.00016437,2]
[327171613,1715873432429,-500.0,0.00016438,2]
[327171615,1715873432439,-500.0,0.00016438,2]
[327171617,1715873432448,-500.0,0.00016438,2]
[327171619,1715873432457,-519.68,0.00016438,2]
[327171621,1715873432467,-500.0,0.00016438,2]
[327171623,1715873432476,-500.0,0.00016438,2]
[327171625,1715873432487,-500.0,0.00016438,2]
[327171627,1715873432496,-500.0,0.00016438,2]
[327171628,1715873432505,-500.0,0.00016438,2]
[327171629,1715873432515,-500.0,0.00016438,2]
[327171630,1715873432524,-500.0,0.00016438,2]
[327171631,1715873432534,-500.0,0.00016438,2]
[327171632,1715873432543,-500.0,0.00016438,2]
[327171633,1715873432553,-500.0,0.00016438,2]
[327171634,1715873432562,-500.0,0.00016438,2]
[327171635,1715873432571,-908.36893449,0.00016438,2]
[327171647,1715873438523,-153.57106551,0.00016438,2]
[327171649,1715873438532,-523.76,0.00016438,2]
[327171651,1715873438542,-127.99406177,0.00016438,2]
[327171658,1715873439152,-372.00593823,0.00016438,2]
[327171659,1715873439162,-500.0,0.00016438,2]
[327171660,1715873439171,-500.0,0.00016438,2]
[327171661,1715873439181,-155.58002828,0.00016438,2]
[327171699,1715873446593,-279.75,0.00016438,2]
[327171707,1715873488007,40738.02,0.000225,30]
[327171720,1715873821410,-500.0,0.00016438,4]
[327171721,1715873821452,-383.04,0.00016712,4]
[327171722,1715873821539,-4436.02,0.00018,7]
[327171726,1715873887211,-1178.54205424,0.00018,7]
[327171727,1715873902293,-1000.0,0.00018,3]
[327171732,1715873954426,-225.28516085,0.00016337,2]
[327171733,1715873954450,-2596.17278491,0.00016338,2]
[327171734,1715874049701,-304.240255,0.00015413,2]
[327171735,1715874049722,-338.83306397,0.00016338,2]
[327171736,1715874049742,-658.24540684,0.00016437,2]
[327171737,1715874049766,-500.0,0.00016438,2]
[327171738,1715874049786,-500.0,0.00016438,2]
[327171739,1715874049806,-500.0,0.00016438,2]
[327171740,1715874049827,-500.0,0.00016438,2]
[327171741,1715874049846,-500.0,0.00016438,2]
[327171742,1715874049867,-527.72,0.00016438,2]
[327171743,1715874049888,-620.46924234,0.00016438,2]
[327171744,1715874049910,-446.00010557,0.00016438,2]
[327171745,1715874049933,-500.0,0.00016438,2]
[327171746,1715874049956,-500.0,0.00016438,2]
[327171747,1715874049976,-500.0,0.00016438,2]
[327171748,1715874049997,-500.0,0.00016438,2]
[327171749,1715874050020,-573.52,0.00016438,2]
[327171750,1715874050042,-500.0,0.00016438,2]
[327171751,1715874050068,-500.0,0.00016438,2]
[327171752,1715874050088,-500.0,0.00016438,2]
[327171753,1715874050108,-550.08078962,0.00016438,2]
[327171754,1715874050128,-1019.89,0.00016438,2]
[327171755,1715874050148,-500.0,0.00016438,2]
[327171756,1715874050170,-500.0,0.00016438,2]
[327171757,1715874050191,-500.0,0.00016438,2]
[327171758,1715874050212,-500.0,0.00016438,2]
[327171759,1715874050236,-500.0,0.00016438,2]
[327171760,1715874050256,-500.0,0.00016438,2]
[327171761,1715874050278,-500.0,0.00016438,2]
[327171762,1715874050298,-500.0,0.00016438,2]
[327171763,1715874050318,-500.0,0.00016438,2]
[327171764,1715874050338,-500.0,0.00016438,2]
[327171765,1715874050357,-500.0,0.00016438,2]
[327171766,1715874050376,-500.0,0.00016438,2]
[327171767,1715874050395,-500.0,0.00016438,2]
[327171768,1715874050415,-500.0,0.00016438,2]
[327171769,1715874050435,-500.0,0.00016438,2]
[327171770,1715874050457,-500.0,0.00016438,2]
[327171771,1715874050482,-500.0,0.00016438,2]
[327171772,1715874050503,-500.0,0.00016438,2]
[327171773,1715874050525,-500.0,0.00016438,2]
[327171774,1715874050548,-121.00113666,0.00016438,2]
[327171775,1715874062442,585.08979066,0.000164,7]
[327171776,1715874143523,-150.0,0.00016238,2]
[327171777,1715874143548,-4220.67206101,0.00016255,2]
[327171778,1715874143572,-196.46265485,0.00016338,2]
[327171779,1715874143598,-2595.90692662,0.00016436,2]
[327171780,1715874143619,-2677.50168314,0.00016436,2]
[327171781,1715874143642,-10369.98173296,0.00016437,2]
[327171782,1715874143665,-447.39886334,0.00016438,2]
[327171783,1715874143687,-500.0,0.00016438,2]
[327171784,1715874143710,-500.0,0.00016438,2]
[327171785,1715874143733,-646.73,0.00016438,2]
[327171786,1715874143757,-1146.13,0.00016438,2]
[327171787,1715874143779,-500.0,0.00016438,2]
[327171788,1715874143803,-500.0,0.00016438,2]
[327171789,1715874143825,-500.0,0.00016438,2]
[327171790,1715874143848,-543.80982664,0.00016438,2]
[327171791,1715874143875,-500.0,0.00016438,2]
[327171792,1715874143898,-5.40625144,0.00016438,2]
[327171793,1715874200348,-208.95851258,0.00016437,2]
[327171794,1715874200370,-494.59374856,0.00016438,2]
[327171795,1715874200391,-500.0,0.00016438,2]
[327171796,1715874200413,-500.0,0.00016438,2]
[327171797,1715874200433,-501.94,0.00016438,2]
[327171798,1715874200454,-500.0,0.00016438,2]
[327171799,1715874200475,-500.0,0.00016438,2]
[327171800,1715874200496,-929.19,0.00016438,2]
[327171801,1715874200522,-500.0,0.00016438,2]
[327171802,1715874200543,-500.0,0.00016438,2]
[327171803,1715874200564,-583.55215283,0.00016438,2]
[327171804,1715874200584,-500.0,0.00016438,2]
[327171805,1715874200605,-500.0,0.00016438,2]
[327171806,1715874200625,-500.0,0.00016438,2]
[327171807,1715874200646,-500.0,0.00016438,2]
[327171808,1715874200668,-500.0,0.00016438,2]
[327171809,1715874200693,-972.25,0.00016438,2]
[327171810,1715874200715,-500.0,0.00016438,2]
[327171811,1715874200735,-500.0,0.00016438,2]
[327171812,1715874200757,-500.0,0.00016438,2]
[327171813,1715874200777,-500.0,0.00016438,2]
[327171814,1715874200798,-500.0,0.00016438,2]
[327171815,1715874200819,-500.0,0.00016438,2]
[327171816,1715874200840,-500.0,0.00016438,2]
[327171817,1715874200860,-502.69958719,0.00016438,2]
[327171818,1715874200880,-500.0,0.00016438,2]
[327171819,1715874200900,-500.0,0.00016438,2]